bitfinex-derivatives/quotes_BTCF0:USTF0_20250720
["timestamp","ask_amount","ask_price","bid_price","bid_amount"]
[1753019800933,1.13978885,118420.0,118410.0,0.23864434]
[1753019802931,1.13978885,118420.0,118410.0,0.27395434]
[1753019803237,1.13978885,118420.0,118410.0,0.2285622]
[1753019804135,0.9239717,118420.0,118410.0,0.48977358]
[1753019804634,0.9239717,118420.0,118410.0,0.27395643]
[1753019804832,0.7551537,118420.0,118410.0,0.80517935]
[1753019805040,0.1461937,118420.0,118410.0,0.80517935]
[1753019805229,0.1406337,118420.0,118410.0,0.86577386]
[1753019806140,0.3094516,118420.0,118410.0,0.86577386]
[1753019806330,0.3094516,118420.0,118410.0,0.80817935]
[1753019806930,0.1406337,118420.0,118410.0,0.80917935]
[1753019807137,0.1406337,118420.0,118410.0,0.86966448]
[1753019807333,0.1406337,118420.0,118410.0,0.80917935]
[1753019807534,0.1406337,118420.0,118410.0,0.86966127]
[1753019807734,0.3094517,118420.0,118410.0,0.86966127]
[1753019808939,0.3094516,118420.0,118410.0,0.86966127]
[1753019809241,0.1406337,118420.0,118410.0,0.86966127]
[1753019809842,0.3094517,118420.0,118410.0,0.86966127]
[1753019810042,0.2546817,118420.0,118410.0,1.03855727]
[1753019810245,0.2902517,118420.0,118410.0,1.03855727]
[1753019810745,0.271648,118420.0,118410.0,0.86966127]
[1753019810942,0.271648,118420.0,118410.0,0.80917935]
[1753019811244,0.271648,118420.0,118410.0,0.88486814]
[1753019811448,0.271648,118420.0,118410.0,0.80917935]
[1753019812141,0.271648,118420.0,118410.0,0.87540838]
[1753019814946,0.288408,118420.0,118410.0,0.87540838]
[1753019815541,0.288408,118420.0,118410.0,0.93584761]
[1753019815542,0.317628,118420.0,118410.0,0.93584761]
[1753019816148,0.317628,118420.0,118410.0,0.72003046]
[1753019816645,0.317628,118420.0,118410.0,0.93584761]
[1753019819149,0.47941165,118420.0,118410.0,0.88181411]
[1753019820943,0.47941165,118420.0,118410.0,0.72003046]
[1753019821149,0.47941165,118420.0,118410.0,0.88181411]
[1753019821339,0.47941165,118420.0,118410.0,0.82137488]
[1753019822046,0.47941165,118420.0,118410.0,0.88181604]
[1753019822248,0.47941165,118420.0,118410.0,0.82137488]
[1753019822546,0.47941165,118420.0,118410.0,0.65959123]
[1753019822741,0.47941165,118420.0,118410.0,0.88181765]
[1753019823457,0.47941165,118420.0,118410.0,0.7200393]
[1753019823641,0.47941165,118420.0,118410.0,0.88182295]
[1753019824150,0.47941165,118420.0,118410.0,0.82137488]
[1753019825955,0.47941165,118420.0,118410.0,0.88183315]
[1753019827242,0.47941165,118420.0,118410.0,0.7200495]
[1753019827443,0.47941165,118420.0,118410.0,0.88183315]
[1753019827950,0.317628,118420.0,118410.0,0.88183315]
[1753019828152,0.47941165,118420.0,118410.0,0.88183315]
[1753019829753,0.47941165,118420.0,118410.0,0.7200495]
[1753019829952,0.47941165,118420.0,118410.0,0.88183315]
[1753019831250,0.47941165,118420.0,118410.0,0.82137488]
[1753019833347,0.47941165,118420.0,118410.0,0.88192141]
[1753019834050,0.47941165,118420.0,118410.0,0.82137488]
[1753019835952,0.47941165,118420.0,118410.0,0.89706367]
[1753019839356,0.317628,118420.0,118410.0,0.89706367]
[1753019839553,0.317628,118420.0,118410.0,0.30825099]
[1753019839748,0.6411953,118420.0,118410.0,0.1972521]
[1753019840555,0.317628,118420.0,118410.0,0.1972521]
[1753019840753,0.6411953,118420.0,118410.0,0.1972521]
[1753019840953,0.6411953,118420.0,118410.0,0.1962521]
[1753019841151,0.6411953,118420.0,118410.0,0.35803575]
[1753019841653,0.6411953,118420.0,118410.0,0.1738322]
[1753019841849,1.2334753,118420.0,118410.0,0.005]
[1753019842156,1.5942753,118420.0,118410.0,0.06558705]
[1753019842852,1.270708,118420.0,118410.0,0.1688322]
[1753019843051,1.270708,118420.0,118410.0,0.1718322]
[1753019843253,1.5942753,118420.0,118410.0,0.23241925]
[1753019843551,1.5942753,118420.0,118410.0,0.23141925]
[1753019843956,1.5942753,118420.0,118410.0,0.06258705]
[1753019844853,1.5942753,118420.0,118410.0,0.23141925]
[1753019845157,1.30010677,118420.0,118410.0,0.06258705]
[1753019845853,1.46189042,118420.0,118410.0,0.06258705]
[1753019846055,0.2791465,118400.0,118390.0,0.80458292]
[1753019846262,0.54093015,118400.0,118390.0,0.89892243]
[1753019846555,0.54093015,118400.0,118390.0,0.90400243]
[1753019847060,0.54093015,118400.0,118390.0,0.96810243]
[1753019847264,0.54093015,118400.0,118390.0,0.97410243]
[1753019847959,0.54093015,118400.0,118390.0,0.81231878]
[1753019848365,0.3791465,118400.0,118390.0,0.97410243]
[1753019848659,0.54093015,118400.0,118390.0,0.97410243]
[1753019848961,0.18935,118400.0,118390.0,0.97410243]
[1753019849163,0.15801,118400.0,118390.0,1.02805797]
[1753019853868,0.15801,118400.0,118390.0,0.81231878]
[1753019854066,0.15801,118400.0,118390.0,1.02805797]
[1753019854371,0.16825,118400.0,118390.0,1.02805797]
[1753019858774,0.1,118400.0,118390.0,1.01288636]
[1753019858967,0.01886584,118410.0,118400.0,0.2678565]
[1753019859171,0.05886584,118410.0,118400.0,1.90025367]
[1753019859470,0.05886584,118410.0,118400.0,1.60910569]
[1753019860374,0.05886584,118410.0,118400.0,1.61210569]
[1753019860679,0.190313,118430.0,118420.0,0.262748]
[1753019860870,0.190313,118430.0,118420.0,1.49565447]
[1753019861268,0.190313,118430.0,118420.0,1.27991528]
[1753019861474,0.211413,118430.0,118420.0,1.56176242]
[1753019861785,0.232363,118430.0,118420.0,1.56176242]
[1753019862077,0.232363,118430.0,118420.0,1.49565447]
[1753019862979,0.232363,118430.0,118420.0,1.49865447]
[1753019863277,0.232363,118430.0,118420.0,1.28291528]
[1753019865170,0.232363,118430.0,118420.0,0.92211528]
[1753019865572,0.232363,118430.0,118420.0,1.28291528]
[1753019866278,0.232363,118430.0,118420.0,1.222428]
[1753019866576,0.232363,118430.0,118420.0,0.9300936]
[1753019866778,0.4011667,118430.0,118420.0,1.2908936]
[1753019867478,0.4011667,118430.0,118420.0,1.35138088]
[1753019868170,0.232363,118430.0,118420.0,1.35138088]
[1753019869181,0.4011667,118430.0,118420.0,1.35138088]
[1753019871578,0.4011667,118430.0,118420.0,1.2908936]
[1753019872976,0.4011667,118430.0,118420.0,0.9300936]
[1753019873177,0.4011667,118430.0,118420.0,1.2908936]
[1753019874686,0.232363,118430.0,118420.0,1.50663279]
[1753019874884,0.232363,118430.0,118420.0,1.50741279]
[1753019877781,0.232363,118430.0,118420.0,1.56790007]
[1753019882393,0.232363,118430.0,118420.0,1.20710007]
[1753019882587,0.232363,118430.0,118420.0,1.56790007]
[1753019883291,0.39412167,118430.0,118420.0,1.67567822]
[1753019884792,0.232363,118430.0,118420.0,1.67567822]
[1753019884989,0.39412167,118430.0,118420.0,1.67567822]
[1753019885289,0.232363,118430.0,118420.0,1.67567822]
[1753019885489,0.39412167,118430.0,118420.0,1.67567822]
[1753019885887,0.211413,118430.0,118420.0,1.67567822]
[1753019886688,0.37317167,118430.0,118420.0,1.35216088]
[1753019887086,0.211413,118430.0,118420.0,1.51391955]
[1753019887491,0.37317167,118430.0,118420.0,1.67567822]
[1753019888997,0.39632167,118430.0,118420.0,1.67567822]
[1753019889196,0.39632167,118430.0,118420.0,1.67574298]
[1753019889497,0.39632167,118430.0,118420.0,1.51398431]
[1753019891196,0.234563,118430.0,118420.0,1.51398431]
[1753019891393,0.39632167,118430.0,118420.0,1.51398431]
[1753019892195,0.39632167,118430.0,118420.0,1.52904137]
[1753019894598,0.39632167,118430.0,118420.0,1.3672827]
[1753019894790,0.39632167,118430.0,118420.0,1.52904137]
[1753019895195,0.39632167,118430.0,118420.0,1.69080004]
[1753019895902,0.39632167,118430.0,118420.0,1.52904137]
[1753019899005,0.234563,118430.0,118420.0,1.52587137]
[1753019899196,0.39632167,118430.0,118420.0,1.52587137]
[1753019902306,0.39632167,118430.0,118420.0,0.7726327]
[1753019902512,0.39632167,118430.0,118420.0,1.52457137]
[1753019902801,0.56512537,118430.0,118420.0,0.9448627]
[1753019903208,0.4033667,118430.0,118420.0,1.0048627]
[1753019903410,0.56512537,118430.0,118420.0,1.16662137]
[1753019904907,0.92592537,118430.0,118420.0,1.16662137]
[1753019906213,0.92592537,118430.0,118420.0,1.0048627]
[1753019906406,0.92592537,118430.0,118420.0,1.02254667]
[1753019906912,0.56512537,118430.0,118420.0,1.09815577]
[1753019908013,0.4033667,118430.0,118420.0,1.09815577]
[1753019908213,0.56512537,118430.0,118420.0,1.09815577]
[1753019908407,0.56512537,118430.0,118420.0,0.9363971]
[1753019909111,0.56512537,118430.0,118420.0,1.09815577]
[1753019910107,0.39632167,118430.0,118420.0,1.02254667]
[1753019910315,0.39632167,118430.0,118420.0,1.02296667]
[1753019911312,0.39632167,118430.0,118420.0,0.861208]
[1753019911610,0.39632167,118430.0,118420.0,1.02296667]
[1753019912212,0.39632167,118430.0,118420.0,1.02254667]
[1753019912805,0.39632167,118430.0,118420.0,0.43178667]
[1753019913106,0.39632167,118430.0,118420.0,1.02122667]
[1753019914010,0.39632167,118430.0,118420.0,1.02090667]
[1753019914219,0.39632167,118430.0,118420.0,0.43178667]
[1753019914516,0.39632167,118430.0,118420.0,1.02090667]
[1753019916016,0.39632167,118430.0,118420.0,1.09641454]
[1753019917613,0.39632167,118430.0,118420.0,0.93465587]
[1753019917820,0.39632167,118430.0,118420.0,1.09641454]
[1753019919015,0.56512527,118430.0,118420.0,1.09641454]
[1753019919216,0.56512527,118430.0,118420.0,0.50729454]
[1753019919417,0.56512527,118430.0,118420.0,1.09565454]
[1753019919818,0.56512527,118430.0,118420.0,0.28553587]
[1753019920018,0.92592527,118430.0,118420.0,0.87254587]
[1753019920618,0.92592527,118430.0,118420.0,0.16971677]
[1753019921015,0.92592527,118430.0,118420.0,0.23032984]
[1753019922022,0.92592527,118430.0,118420.0,0.24759984]
[1753019922214,0.92592527,118430.0,118420.0,0.24559984]
[1753019922717,1.08768394,118430.0,118420.0,0.23043097]
[1753019923315,1.08768394,118430.0,118420.0,0.1698179]
[1753019923511,1.51376527,118430.0,118420.0,0.1698179]
[1753019925519,0.39632167,118430.0,118420.0,0.43201657]
[1753019925725,1.15256527,118430.0,118420.0,0.85342964]
[1753019925919,0.56512527,118430.0,118420.0,0.85342964]
[1753019926123,1.15252527,118430.0,118420.0,0.85342964]
[1753019927226,1.15256527,118430.0,118420.0,0.85342964]
[1753019927421,1.15236527,118430.0,118420.0,0.85342964]
[1753019927621,0.39632167,118430.0,118420.0,0.85342964]
[1753019927823,1.15232527,118430.0,118420.0,0.85342964]
[1753019930230,0.56512527,118430.0,118420.0,0.85342964]
[1753019930430,0.234563,118430.0,118420.0,0.85342964]
[1753019930623,0.234563,118430.0,118420.0,1.54179524]
[1753019931831,0.234563,118430.0,118420.0,1.61740434]
[1753019932028,0.211413,118430.0,118420.0,1.61740434]
[1753019932232,0.132303,118430.0,118420.0,1.60235719]
[1753019932428,0.122063,118430.0,118420.0,1.54179524]
[1753019933324,0.122063,118430.0,118420.0,1.61740434]
[1753019933720,0.122063,118430.0,118420.0,1.54179524]
[1753019934626,0.122063,118430.0,118420.0,1.61740434]
[1753019941132,0.122063,118430.0,118420.0,1.54179524]
[1753019942537,0.122063,118430.0,118420.0,1.61744417]
[1753019943438,0.122063,118430.0,118420.0,1.93744417]
[1753019943638,0.23254494,118450.0,118440.0,0.2627794]
[1753019943839,0.12254494,118450.0,118440.0,1.23304521]
[1753019944040,0.14454494,118450.0,118440.0,1.23304521]
[1753019944338,0.32846361,118450.0,118440.0,1.07128654]
[1753019944534,0.12254494,118450.0,118440.0,1.25042341]
[1753019944730,0.29332004,118450.0,118440.0,1.25042341]
[1753019945443,0.29432004,118450.0,118440.0,1.25042341]
[1753019945740,0.29232004,118450.0,118440.0,1.25042341]
[1753019946042,0.12254494,118450.0,118440.0,1.25038341]
[1753019946244,0.12354494,118450.0,118440.0,1.18987494]
[1753019947038,0.29232004,118450.0,118440.0,1.18987494]
[1753019947239,0.29232004,118450.0,118440.0,1.08857903]
[1753019947440,0.45407871,118450.0,118440.0,1.18987494]
[1753019947641,0.29232004,118450.0,118440.0,1.18987494]
[1753019949246,0.29232004,118450.0,118440.0,1.25031977]
[1753019949840,0.33648004,118450.0,118440.0,1.25027977]
[1753019950844,0.49823871,118450.0,118440.0,1.25027977]
[1753019953348,0.49823871,118450.0,118440.0,1.0884611]
[1753019955943,0.33648004,118450.0,118440.0,1.0884611]
[1753019956149,0.49823871,118450.0,118440.0,1.0884611]
[1753019957548,0.49823871,118450.0,118440.0,1.02801627]
[1753019958144,0.49823871,118450.0,118440.0,0.26288243]
[1753019958450,0.49823871,118450.0,118440.0,1.0323211]
[1753019958646,0.33648004,118450.0,118440.0,1.25006977]
[1753019958843,0.49823871,118450.0,118440.0,1.25006977]
[1753019959248,0.32946361,118450.0,118440.0,1.0883111]
[1753019960152,0.16770494,118450.0,118440.0,1.0883111]
[1753019960452,0.16770494,118450.0,118440.0,1.25013977]
[1753019960858,0.16770494,118450.0,118440.0,1.25019977]
[1753019962251,0.12354494,118450.0,118440.0,1.25019977]
[1753019962653,0.28530361,118450.0,118440.0,1.25019977]
[1753019963153,0.16770494,118450.0,118440.0,1.25019977]
[1753019963554,0.32946361,118450.0,118440.0,1.18975494]
[1753019964055,0.32946361,118450.0,118440.0,1.25019977]
[1753019965764,0.16770494,118450.0,118440.0,1.25019977]
[1753019966057,0.32946361,118450.0,118440.0,1.02491977]
[1753019966258,0.16770494,118450.0,118440.0,1.61091977]
[1753019966461,0.32946361,118450.0,118440.0,1.61091977]
[1753019967146,0.16770494,118450.0,118440.0,1.55047494]
[1753019967453,0.32946361,118450.0,118440.0,1.55047494]
[1753019968961,0.32946361,118450.0,118440.0,1.38871627]
[1753019969259,0.32946361,118450.0,118440.0,1.4491611]
[1753019969562,0.32946361,118450.0,118440.0,1.61091977]
[1753019970154,0.32946361,118450.0,118440.0,1.4491611]
[1753019972859,0.32946361,118450.0,118440.0,1.28740243]
[1753019973055,0.32946361,118450.0,118440.0,1.4491611]
[1753019973763,0.32946361,118450.0,118440.0,1.38871627]
[1753019974459,0.32946361,118450.0,118440.0,1.61091977]
[1753019974660,0.32946361,118450.0,118440.0,1.55047494]
[1753019976064,0.32946361,118450.0,118440.0,1.61103615]
[1753019976257,0.32946361,118450.0,118440.0,1.55047494]
[1753019976458,0.32946361,118450.0,118440.0,1.28751896]
[1753019976657,0.32946361,118450.0,118440.0,1.6110363]
[1753019977265,0.32946361,118450.0,118440.0,1.55047494]
[1753019977766,0.32946361,118450.0,118440.0,1.61103672]
[1753019978866,0.32946361,118450.0,118440.0,1.55047494]
[1753019979066,0.16770494,118450.0,118440.0,1.55047494]
[1753019979259,0.16770494,118450.0,118440.0,1.6110364]
[1753019980269,0.12354494,118450.0,118440.0,1.6110364]
[1753019980568,0.12354494,118450.0,118440.0,1.55047494]
[1753019982564,0.00126744,118450.0,118440.0,2.04223361]
[1753019982764,0.21989815,118470.0,118460.0,0.2667809]
[1753019982965,0.40165682,118470.0,118460.0,1.37513957]
[1753019983961,0.40465682,118470.0,118460.0,1.43568655]
[1753019984164,0.40465682,118470.0,118460.0,1.59744522]
[1753019984369,0.40465682,118470.0,118460.0,1.43568655]
[1753019984561,0.41474682,118470.0,118460.0,1.43568655]
[1753019984762,0.41474682,118470.0,118460.0,1.37513957]
[1753019984971,0.41474682,118470.0,118460.0,1.51128045]
[1753019985269,0.41474682,118470.0,118460.0,1.43564486]
[1753019985962,0.19139,118470.0,118460.0,1.59740353]
[1753019986161,0.19139,118470.0,118460.0,1.60597977]
[1753019986364,0.19139,118470.0,118460.0,1.67339654]
[1753019986658,0.0201359,118470.0,118460.0,1.67339654]
[1753019986865,0.060363,118480.0,118470.0,0.1687473]
[1753019987174,0.120363,118480.0,118470.0,0.58998832]
[1753019987472,0.130453,118480.0,118470.0,0.74502597]
[1753019987670,0.130453,118480.0,118470.0,0.82066156]
[1753019988172,0.132453,118480.0,118470.0,0.82066156]
[1753019988869,0.149063,118480.0,118470.0,1.33074597]
[1753019989374,0.170323,118480.0,118470.0,1.33070597]
[1753019990471,0.122363,118480.0,118470.0,1.33070597]
[1753019990677,0.064063,118480.0,118470.0,1.64070597]
[1753019991366,0.064063,118480.0,118470.0,1.70097725]
[1753019991566,0.122363,118480.0,118470.0,1.70097725]
[1753019993071,0.170323,118480.0,118470.0,1.17537858]
[1753019993372,0.175163,118480.0,118470.0,0.58981858]
[1753019993570,0.175163,118480.0,118470.0,1.39085725]
[1753019994670,0.175163,118480.0,118470.0,1.17533858]
[1753019995073,0.175163,118480.0,118470.0,1.17632858]
[1753019995274,0.175163,118480.0,118470.0,1.39180725]
[1753019995879,0.122363,118480.0,118470.0,1.40188725]
[1753019996077,0.122363,118480.0,118470.0,1.34161597]
[1753019996376,0.133053,118480.0,118470.0,1.34161597]
[1753019996777,0.149433,118480.0,118470.0,1.34161597]
[1753019996976,0.173123,118480.0,118470.0,1.34161597]
[1753019997576,0.178363,118480.0,118470.0,1.34161597]
[1753019997969,0.173123,118480.0,118470.0,1.34161597]
[1753019998375,0.173123,118480.0,118470.0,1.40188725]
[1753020000179,0.178363,118480.0,118470.0,1.40188725]
[1753020000681,0.178363,118480.0,118470.0,1.61274125]
[1753020001281,0.178363,118480.0,118470.0,1.39726258]
[1753020001482,0.178363,118480.0,118470.0,1.61274125]
[1753020002288,0.133053,118480.0,118470.0,1.61274125]
[1753020003081,0.122363,118480.0,118470.0,1.61274125]
[1753020003983,0.133053,118480.0,118470.0,1.02726125]
[1753020004186,0.347096,118480.0,118470.0,0.80750258]
[1753020004383,0.347096,118480.0,118470.0,1.3325513]
[1753020004689,0.347096,118480.0,118470.0,1.39279534]
[1753020005587,0.347096,118480.0,118470.0,1.02295401]
[1753020005781,0.347096,118480.0,118470.0,1.60827401]
[1753020006689,0.56257467,118480.0,118470.0,0.80314534]
[1753020006884,0.56257467,118480.0,118470.0,0.9648813]
[1753020007091,0.92337467,118480.0,118470.0,0.9648813]
[1753020007487,0.707896,118480.0,118470.0,0.9673813]
[1753020007694,0.707896,118480.0,118470.0,1.02762534]
[1753020008194,0.92337467,118480.0,118470.0,1.02762534]
[1753020008491,0.347096,118480.0,118470.0,1.02762534]
[1753020008895,0.347096,118480.0,118470.0,0.3864313]
[1753020009093,0.178363,118480.0,118470.0,0.60190997]
[1753020009293,0.3470961,118480.0,118470.0,0.60555997]
[1753020009895,0.3470961,118480.0,118470.0,0.60190997]
[1753020010388,0.3470961,118480.0,118470.0,0.3864313]
[1753020011194,0.3470961,118480.0,118470.0,0.3830913]
[1753020011493,0.56257477,118480.0,118470.0,0.3796013]
[1753020011689,0.56257477,118480.0,118470.0,0.43984534]
[1753020012797,0.92337477,118480.0,118470.0,0.43984534]
[1753020013394,0.92337477,118480.0,118470.0,0.42489489]
[1753020014291,0.92337477,118480.0,118470.0,0.3796013]
[1753020014492,0.92337477,118480.0,118470.0,0.42490097]
[1753020015296,0.92337477,118480.0,118470.0,0.3796013]
[1753020015689,0.92337477,118480.0,118470.0,0.3821013]
[1753020018496,0.92337477,118480.0,118470.0,0.3796013]
[1753020021598,1.50849477,118480.0,118470.0,0.3796013]
[1753020021996,1.2930161,118480.0,118470.0,0.3796013]
[1753020022197,1.50849477,118480.0,118470.0,0.3796013]
[1753020022993,1.2930161,118480.0,118470.0,0.3796013]
[1753020023195,1.50849477,118480.0,118470.0,0.3796013]
[1753020025902,1.2930161,118480.0,118470.0,0.3840513]
[1753020026104,1.50849477,118480.0,118470.0,0.3840513]
[1753020028310,1.50849477,118480.0,118470.0,0.3796013]
[1753020029100,1.50849477,118480.0,118470.0,0.3806013]
[1753020029498,1.50849477,118480.0,118470.0,0.3823513]
[1753020029908,0.92337477,118480.0,118470.0,0.3823513]
[1753020030204,1.50833477,118480.0,118470.0,0.3823513]
[1753020030606,1.50833477,118480.0,118470.0,0.44084534]
[1753020031298,1.50833477,118480.0,118470.0,0.43984534]
[1753020031700,1.14753477,118480.0,118470.0,0.43984534]
[1753020031904,1.50833477,118480.0,118470.0,0.43984534]
[1753020034510,1.50833477,118480.0,118470.0,0.3796013]
[1753020036505,1.50821477,118480.0,118470.0,0.3796013]
[1753020037112,1.50821477,118480.0,118470.0,0.44115534]
[1753020037714,0.92337477,118480.0,118470.0,0.44115534]
[1753020038012,1.50821477,118480.0,118470.0,0.44115534]
[1753020038202,0.763203,118480.0,118470.0,0.80217534]
[1753020038611,0.178363,118480.0,118470.0,0.80217534]
[1753020038812,0.763203,118480.0,118470.0,0.80217534]
[1753020039905,0.178363,118480.0,118470.0,0.80217534]
[1753020040209,0.763163,118480.0,118470.0,0.7419313]
[1753020040711,0.763163,118480.0,118470.0,0.81756689]
[1753020041211,0.178363,118480.0,118470.0,1.46373836]
[1753020041506,0.122363,118480.0,118470.0,1.3256513]
[1753020041714,0.122363,118480.0,118470.0,1.40128689]
[1753020041900,0.122363,118480.0,118470.0,1.3256513]
[1753020042701,0.122363,118480.0,118470.0,1.40128689]
[1753020043004,0.120363,118480.0,118470.0,1.40128689]
[1753020043204,0.120363,118480.0,118470.0,1.3256513]
[1753020043913,0.120363,118480.0,118470.0,1.40128689]
[1753020044408,0.120363,118480.0,118470.0,1.40120689]
[1753020044915,0.061103,118480.0,118470.0,1.82001489]
[1753020045810,0.061103,118480.0,118470.0,2.39542604]
[1753020046811,0.061103,118480.0,118470.0,2.03542604]
[1753020047007,0.061103,118480.0,118470.0,2.35542604]
[1753020047912,0.135,118500.0,118490.0,0.1687188]
[1753020048111,0.11,118500.0,118490.0,2.3532634]
[1753020048409,0.11,118500.0,118490.0,2.42735384]
[1753020049010,0.11,118500.0,118490.0,2.76735384]
[1753020049211,0.11,118500.0,118490.0,2.42735384]
[1753020049411,0.11,118500.0,118490.0,2.80735384]
[1753020049808,0.11,118500.0,118490.0,2.22275384]
[1753020050023,0.11,118500.0,118490.0,2.80727384]
[1753020050229,0.11,118500.0,118490.0,3.01812784]
[1753020050514,0.11,118500.0,118490.0,1.80360784]
[1753020050721,0.169,118500.0,118490.0,2.38812784]
[1753020051516,0.11,118500.0,118490.0,2.70812784]
[1753020053617,0.11,118500.0,118490.0,2.38812784]
[1753020054121,0.11,118500.0,118490.0,1.80360784]
[1753020054320,0.11,118500.0,118490.0,2.76804784]
[1753020054522,0.11,118500.0,118490.0,2.38804784]
[1753020054713,0.11,118500.0,118490.0,2.75804784]
[1753020055016,0.11,118500.0,118490.0,2.38952784]
[1753020055227,0.11,118500.0,118490.0,2.71036784]
[1753020055411,0.11,118500.0,118490.0,1.80592784]
[1753020055612,0.16894,118500.0,118490.0,1.80592784]
[1753020055825,0.17895,118500.0,118490.0,2.39028784]
[1753020056123,0.17895,118500.0,118490.0,2.31465225]
[1753020056920,0.16894,118500.0,118490.0,2.31465225]
[1753020057725,0.16894,118500.0,118490.0,2.14586825]
[1753020059824,0.16894,118500.0,118490.0,1.56350825]
[1753020060024,0.16894,118500.0,118490.0,2.14782825]
[1753020060025,0.17895,118500.0,118490.0,2.14782825]
[1753020060614,0.17895,118500.0,118490.0,2.22346384]
[1753020060818,0.17895,118500.0,118490.0,1.56350825]
[1753020061018,0.17895,118500.0,118490.0,2.14778825]
[1753020061422,0.22536,118500.0,118490.0,1.56118825]
[1753020061626,0.22536,118500.0,118490.0,1.62126521]
[1753020061820,0.3940646,118500.0,118490.0,1.70461188]
[1753020062219,0.3940646,118500.0,118490.0,0.98301188]
[1753020062418,0.3940646,118500.0,118490.0,1.04310391]
[1753020062824,0.3940646,118500.0,118490.0,1.25851506]
[1753020063024,0.3940646,118500.0,118490.0,0.61784303]
[1753020063226,0.3940646,118500.0,118490.0,0.66292412]
[1753020063528,0.3940646,118500.0,118490.0,1.24716412]
[1753020063727,0.22536,118500.0,118490.0,1.24716412]
[1753020063923,0.22536,118500.0,118490.0,1.60796412]
[1753020065730,0.3940645,118500.0,118490.0,1.39255297]
[1753020066029,0.22536,118500.0,118490.0,1.60796412]
[1753020066433,0.22536,118500.0,118490.0,1.56288303]
[1753020066827,0.3940646,118500.0,118490.0,1.56288303]
[1753020067028,0.22536,118500.0,118490.0,1.56288303]
[1753020068728,0.22536,118500.0,118490.0,1.62297506]
[1753020070124,0.22536,118500.0,118490.0,1.03873506]
[1753020070531,0.22536,118500.0,118490.0,1.62293506]
[1753020070728,0.22536,118500.0,118490.0,1.03873506]
[1753020070929,0.22536,118500.0,118490.0,1.62293506]
[1753020072232,0.3940646,118500.0,118490.0,1.26213506]
[1753020072432,0.3940646,118500.0,118490.0,1.20204303]
[1753020073334,0.3940646,118500.0,118490.0,1.26213506]
[1753020074236,0.22536,118500.0,118490.0,1.26213506]
[1753020075137,0.22536,118500.0,118490.0,1.62293506]
[1753020076139,0.22536,118500.0,118490.0,1.40752391]
[1753020076341,0.22536,118500.0,118490.0,1.62293506]
[1753020078037,0.22536,118500.0,118490.0,1.56284303]
[1753020078738,0.22536,118500.0,118490.0,0.97864303]
[1753020078934,0.22536,118500.0,118490.0,1.56272303]
[1753020079938,0.22536,118500.0,118490.0,1.62305648]
[1753020080143,0.22536,118500.0,118490.0,1.56272303]
[1753020080641,0.3940646,118500.0,118490.0,1.56272303]
[1753020080942,0.3940646,118500.0,118490.0,1.62305905]
[1753020081345,0.3940646,118500.0,118490.0,1.26225905]
[1753020081642,0.3940646,118500.0,118490.0,1.20192303]
[1753020082135,0.22536,118500.0,118490.0,1.20192303]
[1753020082342,0.22536,118500.0,118490.0,1.20389303]
[1753020082540,0.22536,118500.0,118490.0,1.26423918]
[1753020082944,0.22536,118500.0,118490.0,1.62503918]
[1753020083242,0.22536,118500.0,118490.0,1.56469303]
[1753020084745,0.17895,118500.0,118490.0,1.64067862]
[1753020084939,0.16894,118500.0,118490.0,1.56504303]
[1753020085140,0.11,118500.0,118490.0,1.56504303]
[1753020085945,0.11,118500.0,118490.0,1.64067862]
[1753020086340,0.11,118500.0,118490.0,1.96067862]
[1753020086546,0.11,118500.0,118490.0,1.56504303]
[1753020086746,0.11,118500.0,118490.0,2.05146717]
[1753020086935,0.11,118500.0,118490.0,1.08738717]
[1753020087139,0.11,118500.0,118490.0,1.67138717]
[1753020088344,0.11,118500.0,118490.0,1.45597602]
[1753020088544,0.11,118500.0,118490.0,1.67138717]
[1753020090143,0.11,118500.0,118490.0,2.09017117]
[1753020090349,0.03210016,118520.0,118510.0,0.1686903]
[1753020090549,0.06795,118530.0,118520.0,0.1686761]
[1753020090741,0.18764,118530.0,118520.0,0.44440952]
[1753020090941,0.18764,118530.0,118520.0,0.38408725]
[1753020091241,0.18764,118530.0,118520.0,0.45950245]
[1753020091544,0.19795,118530.0,118520.0,0.38408725]
[1753020092346,0.19795,118530.0,118520.0,0.39234949]
[1753020092841,0.19795,118530.0,118520.0,0.5199525]
[1753020093544,0.3666118,118530.0,118520.0,0.5199525]
[1753020094546,0.19795,118530.0,118520.0,0.5199525]
[1753020095151,0.19795,118530.0,118520.0,0.7308065]
[1753020095848,0.3666118,118530.0,118520.0,0.7308065]
[1753020096048,0.19795,118530.0,118520.0,0.7308065]
[1753020096851,0.3666118,118530.0,118520.0,0.7308065]
[1753020097152,0.19795,118530.0,118520.0,0.7308065]
[1753020097845,0.3666118,118530.0,118520.0,0.7308065]
[1753020098553,0.19795,118530.0,118520.0,0.7308065]
[1753020099054,0.18764,118530.0,118520.0,0.6705279]
[1753020099353,0.18764,118530.0,118520.0,1.0313279]
[1753020101656,0.18764,118530.0,118520.0,1.09154472]
[1753020101854,0.18764,118530.0,118520.0,1.09579472]
[1753020102055,0.18764,118530.0,118520.0,1.09651472]
[1753020103449,0.19795,118530.0,118520.0,1.09651472]
[1753020104255,0.13,118530.0,118520.0,1.0362979]
[1753020104450,0.13,118530.0,118520.0,1.1117131]
[1753020104648,0.18764,118530.0,118520.0,1.1117131]
[1753020105363,0.19795,118530.0,118520.0,1.0362979]
[1753020105856,0.19795,118530.0,118520.0,1.09650673]
[1753020107559,0.19795,118530.0,118520.0,0.88904558]
[1753020107856,0.19795,118530.0,118520.0,1.10445673]
[1753020108962,0.19795,118530.0,118520.0,1.0442479]
[1753020110252,0.19795,118530.0,118520.0,1.1196631]
[1753020110455,0.19795,118530.0,118520.0,1.17989507]
[1753020110657,0.19795,118530.0,118520.0,1.10447987]
[1753020112562,0.19795,118530.0,118520.0,1.6277279]
[1753020112949,0.18764,118530.0,118520.0,1.6277279]
[1753020113153,0.18764,118530.0,118520.0,1.73523155]
[1753020113354,0.18764,118530.0,118520.0,1.79550264]
[1753020113555,0.19795,118530.0,118520.0,1.79550264]
[1753020113755,0.19795,118530.0,118520.0,1.81064675]
[1753020114265,0.24347,118530.0,118520.0,1.81064675]
[1753020114660,0.24347,118530.0,118520.0,1.48773195]
[1753020114863,0.19795,118530.0,118520.0,1.81064675]
[1753020116754,0.21462,118530.0,118520.0,1.22716675]
[1753020116960,0.2437,118530.0,118520.0,1.81056675]
[1753020117668,0.4051574,118530.0,118520.0,1.80559675]
[1753020117867,0.2437,118530.0,118520.0,1.80559675]
[1753020118271,0.12614,118530.0,118520.0,2.55737846]
[1753020118464,0.25428855,118550.0,118540.0,0.1686476]
[1753020118664,0.1386,118550.0,118540.0,1.15031074]